fUST/lending_fUST_20250209
["ID","MTS","AMOUNT","RATE_DAILY","PERIOD"]
[352345288,1739050247399,-500.0,0.00011506,2]
[352345290,1739050247407,-901.837087,0.00011506,2]
[352345292,1739050247416,-500.0,0.00011506,2]
[352345294,1739050247425,-901.837087,0.00011506,2]
[352345296,1739050247435,-500.0,0.00011506,2]
[352345298,1739050247444,-500.0,0.00011506,2]
[352345300,1739050247454,-500.0,0.00011506,2]
[352345302,1739050247464,-151.0,0.00011506,2]
[352345304,1739050247473,-500.0,0.00011506,2]
[352345306,1739050247482,-500.0,0.00011506,2]
[352345308,1739050247492,-260.366949,0.00011506,2]
[352345310,1739050247501,-260.366949,0.00011506,2]
[352345312,1739050247510,-649.8897557,0.00011506,2]
[352345314,1739050247520,-500.0,0.00011506,2]
[352345316,1739050247529,-500.0,0.00011506,2]
[352345318,1739050247539,-720.07,0.00011506,2]
[352345320,1739050247549,-251.53655,0.00011506,2]
[352345322,1739050247559,-251.53655,0.00011506,2]
[352345324,1739050247568,-500.0,0.00011506,2]
[352345326,1739050247578,-500.0,0.00011506,2]
[352345328,1739050247587,-518.16,0.00011506,2]
[352345329,1739050247597,-639.94,0.00011506,2]
[352345332,1739050247607,-500.0,0.00011506,2]
[352345333,1739050247617,-500.0,0.00011506,2]
[352345336,1739050247627,-500.0,0.00011506,2]
[352345337,1739050247637,-500.0,0.00011506,2]
[352345340,1739050247646,-957.32,0.00011506,2]
[352345341,1739050247658,-1335.08,0.00011506,2]
[352345343,1739050247668,-2882.99,0.00011506,2]
[352345346,1739050247677,-500.0,0.00011506,2]
[352345347,1739050247687,-9656.15,0.00011506,2]
[352345350,1739050247696,-872.36,0.00011506,2]
[352345352,1739050247706,-500.0,0.00011506,2]
[352345353,1739050247715,-849.11,0.00011506,2]
[352345356,1739050247729,-500.0,0.00011506,2]
[352345357,1739050247739,-566.67,0.00011506,2]
[352345359,1739050247749,-663.78,0.00011506,2]
[352345361,1739050247759,-1089.43,0.00011506,2]
[352345363,1739050247770,-1007.0,0.00011506,2]
[352345366,1739050247781,-500.0,0.00011506,2]
[352345368,1739050247791,-500.0,0.00011506,2]
[352345370,1739050247801,-500.0,0.00011506,2]
[352345372,1739050247813,-500.0,0.00011506,2]
[352345374,1739050247823,-500.0,0.00011506,2]
[352345376,1739050247832,-500.0,0.00011506,2]
[352345378,1739050247841,-500.0,0.00011506,2]
[352345380,1739050247850,-500.0,0.00011506,2]
[352345382,1739050247860,-550.25,0.00011506,2]
[352345384,1739050247869,-500.0,0.00011506,2]
[352345386,1739050247878,-2088.26,0.00011506,2]
[352345388,1739050247888,-500.0,0.00011506,2]
[352345390,1739050247898,-163.45,0.00011506,2]
[352345392,1739050247907,-1946.87,0.00011506,2]
[352345394,1739050247916,-953.16,0.00011506,2]
[352345396,1739050247927,-500.0,0.00011506,2]
[352345398,1739050247936,-500.0,0.00011506,2]
[352345400,1739050247946,-964.58,0.00011506,2]
[352345402,1739050247955,-500.0,0.00011506,2]
[352345404,1739050247964,-228.279158,0.00011506,2]
[352345406,1739050247974,-500.0,0.00011506,2]
[352345408,1739050247984,-500.0,0.00011506,2]
[352345410,1739050247994,-779.61,0.00011506,2]
[352345412,1739050248003,-500.0,0.00011506,2]
[352345414,1739050248013,-513.28479079,0.00011506,2]
[352345416,1739050248023,-481.37302079,0.00011506,2]
[352345418,1739050248034,-500.0,0.00011506,2]
[352345420,1739050248044,-500.0,0.00011506,2]
[352345422,1739050248054,-500.0,0.00011506,2]
[352345424,1739050248066,-5071.44,0.00011506,2]
[352345426,1739050248077,-500.0,0.00011506,2]
[352345428,1739050248087,-1971.88,0.00011506,2]
[352345430,1739050248098,-695.15,0.00011506,2]
[352345432,1739050248107,-500.0,0.00011506,2]
[352345434,1739050248117,-500.0,0.00011506,2]
[352345436,1739050248128,-500.0,0.00011506,2]
[352345438,1739050248138,-500.0,0.00011506,2]
[352345440,1739050248148,-1734.81,0.00011506,2]
[352345442,1739050248158,-151.0,0.00011506,2]
[352345444,1739050248168,-2791.18,0.00011506,2]
[352345445,1739050248178,-1741.36,0.00011506,2]
[352345448,1739050248189,-8983.22,0.00011506,2]
[352345449,1739050248199,-667.85,0.00011506,2]
[352345452,1739050248210,-500.0,0.00011506,2]
[352345453,1739050248220,-500.0,0.00011506,2]
[352345456,1739050248233,-2084.7,0.00011506,2]
[352345458,1739050248243,-883.8,0.00011506,2]
[352345460,1739050248254,-600.74,0.00011506,2]
[352345462,1739050248264,-634.95,0.00011506,2]
[352345464,1739050248275,-246.04762436,0.00011506,2]
[352345466,1739050248286,-758.72,0.00011506,2]
[352345468,1739050248296,-985.47,0.00011506,2]
[352345470,1739050248307,-509.33,0.00011506,2]
[352345471,1739050248316,-2373.71,0.00011506,2]
[352345473,1739050248327,-19726.16687293,0.00011506,2]
[352345565,1739050249318,-2072.42312707,0.00011506,2]
[352345567,1739050249328,-394.49862266,0.00011506,2]
[352345587,1739050249526,-105.50137734,0.00011506,2]
[352345589,1739050249536,-785.57,0.00011506,2]
[352345591,1739050249545,-500.0,0.00011506,2]
[352345593,1739050249557,-638.35586897,0.00011506,2]
[352345598,1739050249593,-433.49413103,0.00011506,2]
[352345600,1739050249603,-151.0,0.000116,2]
[352345602,1739050249613,-215.47722896,0.00011622,2]
[352345618,1739050249779,-151.0,0.00011369,2]
[352345619,1739050249791,-784.52277104,0.00011622,2]
[352345620,1739050249804,-151.0,0.00011643,2]
[352345621,1739050249814,-500.0,0.00011643,2]
[352345622,1739050249824,-151.0,0.00011643,2]
[352345623,1739050249834,-560.51,0.00011643,2]
[352345626,1739050249844,-500.0,0.00011643,2]
[352345628,1739050249854,-756.47,0.00011643,2]
[352345630,1739050249864,-655.01,0.00011643,2]
[352345632,1739050249873,-500.0,0.00011643,2]
[352345634,1739050249883,-500.0,0.00011643,2]
[352345636,1739050249894,-151.0,0.00011643,2]
[352345638,1739050249904,-500.0,0.00011643,2]
[352345640,1739050249914,-500.0,0.00011643,2]
[352345642,1739050249925,-660.71,0.00011643,2]
[352345644,1739050249936,-500.0,0.00011643,2]
[352345646,1739050249947,-500.0,0.00011643,2]
[352345648,1739050249957,-500.0,0.00011643,2]
[352345650,1739050249967,-500.0,0.00011643,2]
[352345652,1739050249977,-500.0,0.00011643,2]
[352345654,1739050249988,-152.667398,0.00011643,2]
[352345656,1739050249998,-500.0,0.00011643,2]
[352345659,1739050250008,-500.0,0.00011643,2]
[352345661,1739050250019,-260.366949,0.00011643,2]
[352345663,1739050250030,-260.366949,0.00011643,2]
[352345665,1739050250040,-500.0,0.00011643,2]
[352345667,1739050250050,-500.0,0.00011643,2]
[352345669,1739050250059,-720.07,0.00011643,2]
[352345671,1739050250070,-251.53655,0.00011643,2]
[352345673,1739050250080,-251.53655,0.00011643,2]
[352345675,1739050250090,-639.94,0.00011643,2]
[352345677,1739050250100,-518.16,0.00011643,2]
[352345679,1739050250110,-500.0,0.00011643,2]
[352345682,1739050250120,-500.0,0.00011643,2]
[352345684,1739050250130,-151.0,0.00011643,2]
[352345686,1739050250140,-500.0,0.00011643,2]
[352345688,1739050250149,-2882.99,0.00011643,2]
[352345690,1739050250159,-500.0,0.00011643,2]
[352345692,1739050250169,-500.0,0.00011643,2]
[352345694,1739050250178,-849.11,0.00011643,2]
[352345696,1739050250188,-500.0,0.00011643,2]
[352345698,1739050250198,-566.67,0.00011643,2]
[352345700,1739050250209,-663.78,0.00011643,2]
[352345702,1739050250220,-1089.43,0.00011643,2]
[352345704,1739050250230,-1007.0,0.00011643,2]
[352345706,1739050250241,-500.0,0.00011643,2]
[352345708,1739050250251,-500.0,0.00011643,2]
[352345710,1739050250261,-187.85081723,0.00011643,2]
[352346508,1739050461692,557.0,0.00014,30]
[352346512,1739051346139,-4992.0257395,9.901e-05,2]
[352346513,1739051346163,-4233.59102782,0.00010001,2]
[352346514,1739051360116,-1729.4452,0.00010001,2]
[352346906,1739051435835,-76.31177218,0.00010001,2]
[352346908,1739051435845,-400.0,0.00010685,2]
[352346910,1739051435854,-1683.23287969,0.00010858,2]
[352346912,1739051435863,-300.0,0.00010956,2]
[352346914,1739051435873,-500.0,0.00010957,2]
[352346915,1739051435881,-240.07451206,0.00010957,2]
[352346917,1739051435891,-500.0,0.00010957,2]
[352346919,1739051435900,-500.0,0.00010957,2]
[352346921,1739051435909,-482.76694128,0.00010957,2]
[352346923,1739051435918,-500.0,0.00010957,2]
[352346925,1739051435927,-396.62968613,0.00010957,2]
[352346927,1739051435937,-500.0,0.00010957,2]
[352346929,1739051435946,-500.0,0.00010957,2]
[352346930,1739051435956,-500.0,0.00010957,2]
[352346931,1739051435965,-500.0,0.00010957,2]
[352346932,1739051435975,-500.0,0.00010957,2]
[352346933,1739051435984,-500.0,0.00010957,2]
[352346934,1739051435993,-500.0,0.00010957,2]
[352346935,1739051436002,-188.64506148,0.00010957,2]
[352346936,1739051436011,-500.0,0.00010958,2]
[352346937,1739051436020,-500.0,0.00010958,2]
[352346938,1739051436030,-500.0,0.00010958,2]
[352346939,1739051436039,-500.0,0.00010958,2]
[352346940,1739051436048,-500.0,0.00010958,2]
[352346941,1739051436057,-500.0,0.00010958,2]
[352346942,1739051436066,-500.0,0.00010958,2]
[352346943,1739051436247,-500.0,0.00010958,2]
[352346944,1739051436256,-500.0,0.00010958,2]
[352346945,1739051436265,-500.0,0.00010958,2]
[352346946,1739051436274,-560.1,0.00010958,2]
[352346947,1739051436284,-500.0,0.00010958,2]
[352346948,1739051436293,-500.0,0.00010958,2]
[352346949,1739051436302,-500.0,0.00010958,2]
[352346950,1739051436311,-500.0,0.00010958,2]
[352346951,1739051436321,-567.26058967,0.00010958,2]
[352346952,1739051436330,-500.0,0.00010958,2]
[352346953,1739051436340,-500.0,0.00010958,2]
[352346954,1739051436349,-500.0,0.00010958,2]
[352346955,1739051436358,-500.0,0.00010958,2]
[352346956,1739051436367,-500.0,0.00010958,2]
[352346957,1739051436376,-761.77,0.00010958,2]
[352346958,1739051436386,-500.0,0.00010958,2]
[352346960,1739051436395,-798.57,0.00010958,2]
[352346962,1739051436405,-500.0,0.00010958,2]
[352346964,1739051436414,-500.0,0.00010958,2]
[352346966,1739051436423,-500.0,0.00010958,2]
[352346967,1739051436432,-500.0,0.00010958,2]
[352346969,1739051436442,-500.0,0.00010958,2]
[352346971,1739051436452,-500.0,0.00010958,2]
[352346972,1739051436461,-500.0,0.00010958,2]
[352346973,1739051436470,-500.0,0.00010958,2]
[352346974,1739051436479,-332.82051323,0.00010958,2]
[352346975,1739051436488,-500.0,0.00010958,2]
[352346976,1739051436498,-735.1,0.00010958,2]
[352346977,1739051436507,-500.0,0.00010958,2]
[352346979,1739051436516,-555.46,0.00010958,2]
[352346980,1739051436525,-500.0,0.00010958,2]
[352346982,1739051436535,-500.0,0.00010958,2]
[352346984,1739051436544,-500.0,0.00010958,2]
[352346986,1739051436555,-500.0,0.00010958,2]
[352346988,1739051436565,-500.0,0.00010958,2]
[352346990,1739051436574,-500.0,0.00010958,2]
[352346992,1739051436584,-500.0,0.00010958,2]
[352346994,1739051436593,-642.09,0.00010958,2]
[352346996,1739051436602,-500.0,0.00010958,2]
[352346998,1739051436611,-500.0,0.00010958,2]
[352347000,1739051436620,-500.0,0.00010958,2]
[352347002,1739051436630,-500.0,0.00010958,2]
[352347003,1739051436639,-500.0,0.00010958,2]
[352347005,1739051436649,-500.0,0.00010958,2]
[352347007,1739051436658,-500.0,0.00010958,2]
[352347009,1739051436667,-500.0,0.00010958,2]
[352347011,1739051436677,-500.0,0.00010958,2]
[352347013,1739051436686,-500.0,0.00010958,2]
[352347015,1739051436695,-500.0,0.00010958,2]
[352347017,1739051436704,-500.0,0.00010958,2]
[352347019,1739051436713,-554.12405265,0.00010958,2]
[352347020,1739051436723,-500.0,0.00010958,2]
[352347022,1739051436732,-500.0,0.00010958,2]
[352347024,1739051436741,-500.0,0.00010958,2]
[352347026,1739051436750,-500.0,0.00010958,2]
[352347028,1739051436759,-500.0,0.00010958,2]
[352347030,1739051436768,-500.0,0.00010958,2]
[352347032,1739051436777,-500.0,0.00010958,2]
[352347034,1739051436787,-500.0,0.00010958,2]
[352347036,1739051436796,-500.0,0.00010958,2]
[352347037,1739051436805,-695.68,0.00010958,2]
[352347039,1739051436815,-500.0,0.00010958,2]
[352347041,1739051436824,-500.0,0.00010958,2]
[352347043,1739051436834,-500.0,0.00010958,2]
[352347045,1739051436843,-500.0,0.00010958,2]
[352347047,1739051436852,-500.0,0.00010958,2]
[352347049,1739051436861,-500.0,0.00010958,2]
[352347051,1739051436870,-500.0,0.00010958,2]
[352347053,1739051436880,-500.0,0.00010958,2]
[352347055,1739051436889,-500.0,0.00010958,2]
[352347056,1739051436898,-500.0,0.00010958,2]
[352347058,1739051436907,-500.0,0.00010958,2]
[352347060,1739051436918,-500.0,0.00010958,2]
[352347062,1739051436927,-500.0,0.00010958,2]
[352347064,1739051436937,-500.0,0.00010958,2]
[352347066,1739051436946,-500.0,0.00010958,2]
[352347068,1739051436955,-500.0,0.00010958,2]
[352347070,1739051436964,-508.5275192,0.00010958,2]
[352347071,1739051436973,-414.06222376,0.00010958,2]
[352347073,1739051436982,-500.0,0.00010958,2]
[352347075,1739051436991,-559.07,0.00010958,2]
[352347077,1739051437001,-500.0,0.00010958,2]
[352347079,1739051437010,-500.0,0.00010958,2]
[352347081,1739051437019,-500.0,0.00010958,2]
[352347083,1739051437028,-500.0,0.00010958,2]
[352347085,1739051437036,-500.0,0.00010958,2]
[352347087,1739051437045,-500.0,0.00010958,2]
[352347089,1739051437054,-500.0,0.00010958,2]
[352347090,1739051437063,-273.90233642,0.00010958,2]
[352347092,1739051437072,-500.0,0.00010958,2]
[352347094,1739051437082,-223.62874659,0.00010958,2]
[352347096,1739051437091,-500.0,0.00010958,2]
[352347098,1739051437100,-500.0,0.00010958,2]
[352347100,1739051437114,-500.0,0.00010958,2]
[352347102,1739051437123,-752.57,0.00010958,2]
[352347104,1739051437133,-500.0,0.00010958,2]
[352347106,1739051437142,-500.0,0.00010958,2]
[352347108,1739051437151,-500.0,0.00010958,2]
[352347110,1739051437160,-500.0,0.00010958,2]
[352347112,1739051437169,-500.0,0.00010958,2]
[352347113,1739051437178,-218.56227304,0.00010958,2]
[352347150,1739051437839,-281.43772696,0.00010958,2]
[352347152,1739051437849,-500.0,0.00010958,2]
[352347154,1739051437858,-500.0,0.00010958,2]
[352347155,1739051437869,-500.0,0.00010958,2]
[352347156,1739051437879,-613.17915123,0.00010958,2]
[352347157,1739051437888,-500.0,0.00010958,2]
[352347158,1739051437898,-500.0,0.00010958,2]
[352347159,1739051437907,-500.0,0.00010958,2]
[352347160,1739051437918,-500.0,0.00010958,2]
[352347161,1739051437927,-500.0,0.00010958,2]
[352347162,1739051437937,-800.39,0.00010958,2]
[352347163,1739051437947,-425.36597183,0.00010958,2]
[352347164,1739051437955,-500.0,0.00010958,2]
[352347165,1739051437965,-500.0,0.00010958,2]
[352347166,1739051437975,-500.0,0.00010958,2]
[352347167,1739051437984,-500.0,0.00010958,2]
[352347168,1739051437994,-500.0,0.00010958,2]
[352347169,1739051438003,-2446.56,0.00010958,2]
[352347170,1739051438013,-500.0,0.00010958,2]
[352347171,1739051438022,-500.0,0.00010958,2]
[352347172,1739051438032,-500.0,0.00010958,2]
[352347173,1739051438041,-500.0,0.00010958,2]
[352347174,1739051438050,-500.0,0.00010958,2]
[352347175,1739051438059,-500.0,0.00010958,2]
[352347176,1739051438069,-376.28,0.00010958,2]
[352347177,1739051438079,-500.0,0.00010958,2]
[352347178,1739051438088,-677.79,0.00010958,2]
[352347179,1739051438097,-500.0,0.00010958,2]
[352347180,1739051438108,-502.7,0.00010958,2]
[352347181,1739051438119,-500.0,0.00010958,2]
[352347182,1739051438129,-500.0,0.00010958,2]
[352347183,1739051438137,-902.71,0.00010958,2]
[352347184,1739051438147,-902.71,0.00010958,2]
[352347185,1739051438158,-902.71,0.00010958,2]
[352347186,1739051438168,-902.71,0.00010958,2]
[352347187,1739051438178,-902.71,0.00010958,2]
[352347188,1739051438189,-902.71,0.00010958,2]
[352347189,1739051438198,-1397.58,0.00010958,2]
[352347190,1739051438208,-902.71,0.00010958,2]
[352347191,1739051438218,-902.71,0.00010958,2]
[352347192,1739051438227,-1068.86,0.00010958,2]
[352347193,1739051438237,-1048.38,0.00010958,2]
[352347194,1739051438247,-500.0,0.00010958,2]
[352347195,1739051438257,-500.0,0.00010958,2]
[352347196,1739051438267,-500.0,0.00010958,2]
[352347197,1739051438276,-500.0,0.00010958,2]
[352347198,1739051438286,-500.0,0.00010958,2]
[352347199,1739051438295,-998.99,0.00010958,2]
[352347200,1739051438305,-500.0,0.00010958,2]
[352347201,1739051438314,-500.0,0.00010958,2]
[352347202,1739051438324,-500.0,0.00010958,2]
[352347203,1739051438333,-934.86,0.00010958,2]
[352347204,1739051438343,-500.0,0.00010958,2]
[352347205,1739051438352,-2808.06,0.00010958,2]
[352347206,1739051438361,-500.0,0.00010958,2]
[352347207,1739051438371,-500.0,0.00010958,2]
[352347208,1739051438380,-500.0,0.00010958,2]
[352347209,1739051438390,-500.0,0.00010958,2]
[352347211,1739051438399,-500.0,0.00010958,2]
[352347213,1739051438409,-500.0,0.00010958,2]
[352347215,1739051438418,-500.0,0.00010958,2]
[352347217,1739051438428,-605.56,0.00010958,2]
[352347219,1739051438437,-500.0,0.00010958,2]
[352347221,1739051438446,-503.4158796,0.00010958,2]
[352347223,1739051438456,-845.95,0.00010958,2]
[352347225,1739051438465,-500.0,0.00010958,2]
[352347227,1739051438476,-497.31558103,0.00010958,2]
[352347229,1739051438485,-500.0,0.00010958,2]
[352347231,1739051438495,-500.0,0.00010958,2]
[352347233,1739051438504,-500.0,0.00010958,2]
[352347235,1739051438514,-500.0,0.00010958,2]
[352347237,1739051438524,-500.0,0.00010958,2]
[352347239,1739051438533,-500.0,0.00010958,2]
[352347241,1739051438543,-1064.87,0.00010958,2]
[352347243,1739051438552,-500.0,0.00010958,2]
[352347245,1739051438562,-500.0,0.00010958,2]
[352347247,1739051438571,-500.0,0.00010958,2]
[352347249,1739051438580,-500.0,0.00010958,2]
[352347251,1739051438590,-500.0,0.00010958,2]
[352347253,1739051438599,-500.0,0.00010958,2]
[352347255,1739051438608,-500.0,0.00010958,2]
[352347257,1739051438618,-500.0,0.00010958,2]
[352347259,1739051438627,-500.0,0.00010958,2]
[352347261,1739051438636,-500.0,0.00010958,2]
[352347263,1739051438646,-500.0,0.00010958,2]
[352347265,1739051438655,-500.0,0.00010958,2]
[352347267,1739051438664,-500.0,0.00010958,2]
[352347269,1739051438673,-500.0,0.00010958,2]
[352347271,1739051438683,-196.93009315,0.00010958,2]
[352347273,1739051438692,-500.0,0.00010958,2]
[352347275,1739051438701,-500.0,0.00010958,2]
[352347277,1739051438711,-503.54426953,0.00010958,2]
[352347279,1739051438720,-273.51567268,0.00010958,2]
[352347281,1739051438731,-2122.42,0.00010958,2]
[352347284,1739051438741,-502.92290859,0.00010958,2]
[352347286,1739051438751,-709.51,0.00010958,2]
[352347288,1739051438760,-500.0,0.00010958,2]
[352347290,1739051438770,-500.0,0.00010958,2]
[352347292,1739051438780,-500.0,0.00010958,2]
[352347293,1739051438797,-5169.13,0.00010958,2]
[352347295,1739051438806,-500.0,0.00010958,2]
[352347297,1739051438815,-500.0,0.00010958,2]
[352347299,1739051438825,-500.0,0.00010958,2]
[352347301,1739051438834,-503.72983366,0.00010958,2]
[352347303,1739051438843,-201.510842,0.00010958,2]
[352347305,1739051438853,-974.0,0.00010958,2]
[352347307,1739051438863,-500.0,0.00010958,2]
[352347309,1739051438872,-500.0,0.00010958,2]
[352347312,1739051438885,-500.0,0.00010958,2]
[352347314,1739051438896,-500.0,0.00010958,2]
[352347316,1739051438907,-500.0,0.00010958,2]
[352347318,1739051438916,-1984.37,0.00010958,2]
[352347320,1739051438926,-500.0,0.00010958,2]
[352347322,1739051438936,-500.0,0.00010958,2]
[352347324,1739051438945,-7860.76403682,0.00010958,2]
[352347327,1739051438965,-1245.29596318,0.00010958,2]
[352347329,1739051438974,-500.0,0.00010958,2]
[352347331,1739051438984,-2123.8,0.00010958,2]
[352347333,1739051438993,-500.0,0.00010958,2]
[352347335,1739051439002,-199.83306714,0.00010958,2]
[352347337,1739051439011,-986.2,0.00010958,2]
[352347339,1739051439021,-500.0,0.00010958,2]
[352347341,1739051439030,-500.0,0.00010958,2]
[352347343,1739051439039,-655.78,0.00010958,2]
[352347345,1739051439048,-500.0,0.00010958,2]
[352347347,1739051439058,-500.0,0.00010958,2]
[352347349,1739051439067,-500.0,0.00010958,2]
[352347351,1739051439076,-500.0,0.00010958,2]
[352347353,1739051439086,-500.0,0.00010958,2]
[352347355,1739051439094,-500.0,0.00010958,2]
[352347356,1739051439103,-2020.77,0.00010958,2]
[352347358,1739051439117,-500.0,0.00010958,2]
[352347360,1739051439126,-500.0,0.00010958,2]
[352347363,1739051439135,-500.0,0.00010958,2]
[352347364,1739051439145,-500.0,0.00010958,2]
[352347366,1739051439155,-871.32,0.00010958,2]
[352347369,1739051439165,-500.0,0.00010958,2]
[352347371,1739051439174,-500.0,0.00010958,2]
[352347373,1739051439184,-500.0,0.00010958,2]
[352347375,1739051439194,-500.0,0.00010958,2]
[352347377,1739051439204,-500.0,0.00010958,2]
[352347379,1739051439214,-500.0,0.00010958,2]
[352347380,1739051439224,-1773.38,0.00010958,2]
[352347382,1739051439234,-500.0,0.00010958,2]
[352347384,1739051439243,-500.0,0.00010958,2]
[352347387,1739051439253,-500.0,0.00010958,2]
[352347388,1739051439263,-500.0,0.00010958,2]
[352347391,1739051439272,-500.0,0.00010958,2]
[352347392,1739051439283,-500.0,0.00010958,2]
[352347395,1739051439292,-500.0,0.00010958,2]
[352347396,1739051439302,-500.0,0.00010958,2]
[352347399,1739051439311,-503.39767878,0.00010958,2]
[352347401,1739051439320,-500.0,0.00010958,2]
[352347403,1739051439331,-500.0,0.00010958,2]
[352347405,1739051439340,-391.88252646,0.00010958,2]
[352347408,1739051439349,-500.0,0.00010958,2]
[352347410,1739051439358,-904.63,0.00010958,2]
[352347412,1739051439368,-715.99,0.00010958,2]
[352347414,1739051439377,-500.0,0.00010958,2]
[352347416,1739051439386,-500.0,0.00010958,2]
[352347418,1739051439396,-500.0,0.00010958,2]
[352347420,1739051439405,-500.0,0.00010958,2]
[352347422,1739051439415,-500.0,0.00010958,2]
[352347424,1739051439424,-500.0,0.00010958,2]
[352347426,1739051439433,-500.0,0.00010958,2]
[352347428,1739051439443,-1039.13,0.00010958,2]
[352347430,1739051439452,-500.0,0.00010958,2]
[352347432,1739051439462,-1859.68,0.00010958,2]
[352347434,1739051439471,-642.4,0.00010958,2]
[352347436,1739051439481,-500.0,0.00010958,2]
[352347438,1739051439491,-500.0,0.00010958,2]
[352347440,1739051439501,-509.33,0.00010958,2]
[352347441,1739051439510,-500.0,0.00010958,2]
[352347444,1739051439519,-500.0,0.00010958,2]
[352347445,1739051439529,-2869.44,0.00010958,2]
[352347448,1739051439538,-500.0,0.00010958,2]
[352347450,1739051439548,-500.0,0.00010958,2]
[352347451,1739051439557,-22135.45,0.00010958,2]
[352347453,1739051439567,-500.0,0.00010958,2]
[352347455,1739051439576,-500.0,0.00010958,2]
[352347457,1739051439586,-10167.05,0.00010958,2]
[352347459,1739051439595,-151.71668588,0.00010995,2]
[352347461,1739051439605,-902.71,0.00011093,2]
[352347463,1739051439615,-902.71,0.00011094,2]
[352347465,1739051439624,-902.71,0.00011094,2]
[352347467,1739051439634,-902.71,0.00011094,2]
[352347469,1739051439643,-902.71,0.00011094,2]
[352347471,1739051439652,-902.71,0.00011094,2]
[352347473,1739051439662,-902.71,0.00011094,2]
[352347475,1739051439671,-500.0,0.00011095,2]
[352347477,1739051439680,-500.0,0.00011095,2]
[352347479,1739051439690,-500.0,0.00011095,2]
[352347481,1739051439699,-500.0,0.00011095,2]
[352347483,1739051439709,-500.0,0.00011095,2]
[352347485,1739051439718,-189.76,0.00011095,2]
[352347487,1739051439728,-500.0,0.00011095,2]
[352347489,1739051439737,-500.0,0.00011095,2]
[352347491,1739051439746,-500.0,0.00011095,2]
[352347493,1739051439756,-500.0,0.00011095,2]
[352347495,1739051439765,-500.0,0.00011095,2]
[352347497,1739051439775,-500.0,0.00011095,2]
[352347499,1739051439785,-500.0,0.00011095,2]
[352347502,1739051439795,-761.77,0.00011095,2]
[352347504,1739051439804,-500.0,0.00011095,2]
[352347506,1739051439814,-798.57,0.00011095,2]
[352347507,1739051439823,-500.0,0.00011095,2]
[352347509,1739051439832,-500.0,0.00011095,2]
[352347511,1739051439842,-500.0,0.00011095,2]
[352347513,1739051439851,-500.0,0.00011095,2]
[352347515,1739051439860,-500.0,0.00011095,2]
[352347517,1739051439870,-735.1,0.00011095,2]
[352347519,1739051439879,-500.0,0.00011095,2]
[352347522,1739051439888,-555.46,0.00011095,2]
[352347524,1739051439899,-500.0,0.00011095,2]
[352347525,1739051439908,-500.0,0.00011095,2]
[352347528,1739051439918,-500.0,0.00011095,2]
[352347530,1739051439928,-500.0,0.00011095,2]
[352347532,1739051439937,-500.0,0.00011095,2]